[Event "Late-Titled-Tuesday-Blitz-May-28-2024"]
[Site "Chess.com"]
[Date "2024.05.28"]
[Round "7"]
[White "Jospem"]
[Black "DanielNaroditsky"]
[Result "1/2-1/2"]
[WhiteElo "3029"]
[BlackElo "3082"]
[TimeControl "180+1"]
[EndTime "15:16:10 PDT"]
[Termination "Game drawn by agreement"]

1. e4 {[%clk 0:03:00.9]} 1... e5 {[%clk 0:02:53.5]} 2. Nf3 {[%clk 0:02:57.1]}
2... Nc6 {[%clk 0:02:54]} 3. Nc3 {[%clk 0:02:56.7]} 3... Bb4 {[%clk 0:02:51.3]}
4. a3 {[%clk 0:02:54.5]} 4... Ba5 {[%clk 0:02:47.3]} 5. Bc4 {[%clk 0:02:48.1]}
5... Nf6 {[%clk 0:02:32.7]} 6. O-O {[%clk 0:02:45.2]} 6... d6 {[%clk 0:02:31.7]}
7. d3 {[%clk 0:02:34.5]} 7... h6 {[%clk 0:02:24.5]} 8. h3 {[%clk 0:02:27.8]}
8... Be6 {[%clk 0:02:18.6]} 9. Bxe6 {[%clk 0:02:27.1]} 9... fxe6 {[%clk
0:02:19.5]} 10. Ne2 {[%clk 0:02:27.3]} 10... Bb6 {[%clk 0:02:18.9]} 11. Ng3
{[%clk 0:02:25.3]} 11... O-O {[%clk 0:02:18.9]} 12. c3 {[%clk 0:02:19.2]} 12...
Qe8 {[%clk 0:02:16.6]} 13. Be3 {[%clk 0:02:11.5]} 13... Nh5 {[%clk 0:02:08.1]}
14. Nxh5 {[%clk 0:01:52.4]} 14... Qxh5 {[%clk 0:02:09]} 15. Nd2 {[%clk
0:01:52.6]} 15... Qxd1 {[%clk 0:01:52.3]} 16. Raxd1 {[%clk 0:01:53.5]} 16...
Bxe3 {[%clk 0:01:22.3]} 17. fxe3 {[%clk 0:01:54.4]} 17... Rxf1+ {[%clk
0:01:22.9]} 18. Kxf1 {[%clk 0:01:55.3]} 18... Kf7 {[%clk 0:01:22.5]} 19. Ke2
{[%clk 0:01:55.3]} 19... Ke7 {[%clk 0:01:19.6]} 20. b4 {[%clk 0:01:53.9]} 20...
a6 {[%clk 0:01:15.4]} 21. a4 {[%clk 0:01:51.1]} 21... b5 {[%clk 0:01:11.5]} 22.
Ra1 {[%clk 0:01:49.1]} 22... Rb8 {[%clk 0:01:08]} 23. axb5 {[%clk 0:01:30.6]}
23... axb5 {[%clk 0:01:08.9]} 24. d4 {[%clk 0:01:30.3]} 24... Kd7 {[%clk
0:01:06.6]} 25. Nf3 {[%clk 0:01:25.3]} 25... exd4 {[%clk 0:01:05]} 26. exd4
{[%clk 0:01:26.2]} 26... e5 {[%clk 0:00:51.6]} 27. dxe5 {[%clk 0:01:17]} 27...
Nxe5 {[%clk 0:00:52.2]} 28. Nxe5+ {[%clk 0:01:17.3]} 28... dxe5 {[%clk
0:00:53.1]} 29. Ra6 {[%clk 0:01:17.8]} 29... Rb6 {[%clk 0:00:38]} 30. Ra5 {[%clk
0:01:05.8]} 30... h5 {[%clk 0:00:38.4]} 1/2-1/2

[Event "Late-Titled-Tuesday-Blitz-May-28-2024"]
[Site "Chess.com"]
[Date "2024.05.28"]
[Round "7"]
[White "Roedor"]
[Black "Arteler"]
[Result "1-0"]
[WhiteElo "2325"]
[BlackElo "2218"]
[TimeControl "180+1"]
[EndTime "15:16:11 PDT"]
[Termination "Roedor won by resignation"]

1. c4 {[%clk 0:02:54.6]} 1... e6 {[%clk 0:02:58.3]} 2. g3 {[%clk 0:02:53.6]}
2... Nf6 {[%clk 0:02:58.1]} 3. Bg2 {[%clk 0:02:54]} 3... d5 {[%clk 0:02:58.4]}
4. d4 {[%clk 0:02:54.6]} 4... c6 {[%clk 0:02:57.7]} 5. Nf3 {[%clk 0:02:54.8]}
5... Be7 {[%clk 0:02:56.6]} 6. O-O {[%clk 0:02:54.7]} 6... O-O {[%clk
0:02:56.8]} 7. Nbd2 {[%clk 0:02:55.3]} 7... Nbd7 {[%clk 0:02:56.3]} 8. Qc2
{[%clk 0:02:55.6]} 8... dxc4 {[%clk 0:02:42]} 9. Nxc4 {[%clk 0:02:54.4]} 9...
Nb6 {[%clk 0:02:42.3]} 10. Nce5 {[%clk 0:02:54.1]} 10... Bd6 {[%clk 0:02:28.5]}
11. Rd1 {[%clk 0:02:52.4]} 11... Nbd5 {[%clk 0:02:23.1]} 12. a3 {[%clk 0:02:51]}
12... Qc7 {[%clk 0:02:15.7]} 13. e4 {[%clk 0:02:47.1]} 13... Ne7 {[%clk
0:01:55.1]} 14. Nc4 {[%clk 0:02:42.8]} 14... e5 {[%clk 0:01:44.7]} 15. dxe5
{[%clk 0:02:41.6]} 15... Bc5 {[%clk 0:01:35.3]} 16. exf6 {[%clk 0:02:40.2]}
16... gxf6 {[%clk 0:01:36.2]} 17. Be3 {[%clk 0:02:32.6]} 17... Bxe3 {[%clk
0:01:31.7]} 18. Nxe3 {[%clk 0:02:33.5]} 18... Be6 {[%clk 0:01:28.6]} 19. Nd5
{[%clk 0:02:28.7]} 19... Bxd5 {[%clk 0:01:04]} 20. exd5 {[%clk 0:02:27.5]} 20...
Rad8 {[%clk 0:01:01.6]} 21. Nh4 {[%clk 0:02:21]} 21... Rd7 {[%clk 0:00:51.4]}
22. dxc6 {[%clk 0:02:07.4]} 22... Rxd1+ {[%clk 0:00:45.7]} 23. Rxd1 {[%clk
0:02:08.3]} 23... bxc6 {[%clk 0:00:44.3]} 24. Nf5 {[%clk 0:02:07.7]} 24... Ng6
{[%clk 0:00:33.7]} 25. Qxc6 {[%clk 0:01:58.1]} 25... Qe5 {[%clk 0:00:32.8]} 26.
Qe4 {[%clk 0:01:28.7]} 26... Qxb2 {[%clk 0:00:24.6]} 27. Ne7+ {[%clk 0:01:24.9]}
27... Kg7 {[%clk 0:00:15.2]} 28. Nxg6 {[%clk 0:01:21.5]} 28... hxg6 {[%clk
0:00:16.1]} 29. Qb4 {[%clk 0:01:17.6]} 29... Rc8 {[%clk 0:00:12.9]} 30. Qxb2
{[%clk 0:01:16.8]} 1-0

[Event "Late-Titled-Tuesday-Blitz-May-28-2024"]
[Site "Chess.com"]
[Date "2024.05.28"]
[Round "7"]
[White "merinasian"]
[Black "subham777"]
[Result "1-0"]
[WhiteElo "2459"]
[BlackElo "2557"]
[TimeControl "180+1"]
[EndTime "15:16:12 PDT"]
[Termination "merinasian won by resignation"]

1. d4 {[%clk 0:03:00.3]} 1... d5 {[%clk 0:02:59.8]} 2. Nf3 {[%clk 0:02:59.3]}
2... Nf6 {[%clk 0:02:59.7]} 3. c4 {[%clk 0:02:58.8]} 3... e6 {[%clk 0:02:59.9]}
4. e3 {[%clk 0:02:58.3]} 4... Be7 {[%clk 0:03:00.1]} 5. Nbd2 {[%clk 0:02:58.2]}
5... O-O {[%clk 0:02:59.2]} 6. Bd3 {[%clk 0:02:58.2]} 6... b6 {[%clk 0:02:59.8]}
7. O-O {[%clk 0:02:57.9]} 7... Bb7 {[%clk 0:03:00.3]} 8. Qe2 {[%clk 0:02:57.2]}
8... Ne4 {[%clk 0:02:56.4]} 9. b3 {[%clk 0:02:48.6]} 9... c5 {[%clk 0:02:46.4]}
10. Bb2 {[%clk 0:02:48.3]} 10... f5 {[%clk 0:02:46.2]} 11. Rfd1 {[%clk
0:02:43.4]} 11... Qe8 {[%clk 0:02:40.2]} 12. Ne5 {[%clk 0:02:32.8]} 12... Nxd2
{[%clk 0:02:23]} 13. Rxd2 {[%clk 0:02:30.1]} 13... Bf6 {[%clk 0:02:20.2]} 14.
cxd5 {[%clk 0:02:23.8]} 14... Bxd5 {[%clk 0:02:19.5]} 15. dxc5 {[%clk
0:02:17.1]} 15... bxc5 {[%clk 0:02:19]} 16. Bc4 {[%clk 0:02:13.8]} 16... Nc6
{[%clk 0:02:11.2]} 17. Rxd5 {[%clk 0:02:03.7]} 17... exd5 {[%clk 0:01:48]} 18.
Bxd5+ {[%clk 0:02:02.5]} 18... Kh8 {[%clk 0:01:48.4]} 19. Bxc6 {[%clk
0:02:01.7]} 19... Qe7 {[%clk 0:01:48.6]} 20. Bxa8 {[%clk 0:01:38.5]} 20... Bxe5
{[%clk 0:01:46.6]} 21. Bf3 {[%clk 0:01:29.2]} 21... g5 {[%clk 0:01:40.6]} 22. g3
{[%clk 0:01:24.2]} 22... Rd8 {[%clk 0:01:39.4]} 23. Bxe5+ {[%clk 0:01:21.4]}
23... Qxe5 {[%clk 0:01:40.3]} 24. Rd1 {[%clk 0:01:21.3]} 24... Rxd1+ {[%clk
0:01:40.3]} 25. Qxd1 {[%clk 0:01:19.6]} 25... g4 {[%clk 0:01:41.2]} 26. Be2
{[%clk 0:01:14]} 26... Qb2 {[%clk 0:01:40.7]} 27. a4 {[%clk 0:01:11.1]} 27... a5
{[%clk 0:01:37.9]} 28. Bc4 {[%clk 0:01:10.6]} 28... Kg7 {[%clk 0:01:37.8]} 29.
Kg2 {[%clk 0:01:08.9]} 29... Qe5 {[%clk 0:01:19.3]} 30. Qd5 {[%clk 0:01:07.8]}
30... Qe7 {[%clk 0:01:17.1]} 31. Qxf5 {[%clk 0:01:05.5]} 31... Qb7+ {[%clk
0:01:15.6]} 32. Bd5 {[%clk 0:01:03]} 32... Qb4 {[%clk 0:01:14.2]} 33. e4 {[%clk
0:00:58.3]} 33... Qd4 {[%clk 0:01:10.7]} 34. Qxg4+ {[%clk 0:00:57.8]} 34... Kf6
{[%clk 0:01:08.9]} 35. Qf5+ {[%clk 0:00:56.8]} 35... Kg7 {[%clk 0:01:08.9]} 36.
h4 {[%clk 0:00:56.1]} 36... c4 {[%clk 0:01:07.6]} 37. Bxc4 {[%clk 0:00:54.2]}
37... h5 {[%clk 0:01:04]} 38. Qg5+ {[%clk 0:00:52.4]} 38... Kf8 {[%clk
0:01:01.8]} 39. Qh6+ {[%clk 0:00:50.6]} 39... Ke7 {[%clk 0:01:00.6]} 40. Qe6+
{[%clk 0:00:49.5]} 40... Kd8 {[%clk 0:00:58.8]} 41. Qd5+ {[%clk 0:00:49.2]} 1-0

[Event "Late-Titled-Tuesday-Blitz-May-28-2024"]
[Site "Chess.com"]
[Date "2024.05.28"]
[Round "7"]
[White "Blitz"]
[Black "NMChessToImpress"]
[Result "1-0"]
[WhiteElo "2513"]
[BlackElo "2318"]
[TimeControl "180+1"]
[EndTime "15:16:16 PDT"]
[Termination "Blitz won by resignation"]

1. d4 {[%clk 0:03:00.9]} 1... e6 {[%clk 0:03:00.2]} 2. e4 {[%clk 0:02:56.6]}
2... d5 {[%clk 0:02:59.3]} 3. Nc3 {[%clk 0:02:55.3]} 3... Bb4 {[%clk 0:02:58.8]}
4. e5 {[%clk 0:02:50.6]} 4... c5 {[%clk 0:02:58.6]} 5. a3 {[%clk 0:02:44.4]}
5... Bxc3+ {[%clk 0:02:58.9]} 6. bxc3 {[%clk 0:02:45.3]} 6... Ne7 {[%clk
0:02:59.2]} 7. Qg4 {[%clk 0:02:45.1]} 7... Qc7 {[%clk 0:02:59.7]} 8. Qxg7 {[%clk
0:02:25.7]} 8... Rg8 {[%clk 0:02:59.4]} 9. Qxh7 {[%clk 0:02:26.3]} 9... cxd4
{[%clk 0:02:59.8]} 10. Ne2 {[%clk 0:02:15.8]} 10... Nbc6 {[%clk 0:02:57.9]} 11.
f4 {[%clk 0:02:11.6]} 11... dxc3 {[%clk 0:02:58]} 12. Qd3 {[%clk 0:02:11.9]}
12... d4 {[%clk 0:02:57.8]} 13. Nxd4 {[%clk 0:01:51.8]} 13... Nxd4 {[%clk
0:02:58.7]} 14. Qxd4 {[%clk 0:01:52.2]} 14... Bd7 {[%clk 0:02:57.8]} 15. Rb1
{[%clk 0:01:49.8]} 15... Nf5 {[%clk 0:02:46.5]} 16. Qf2 {[%clk 0:01:42.2]} 16...
Bc6 {[%clk 0:02:18.3]} 17. Rg1 {[%clk 0:01:27.1]} 17... Qa5 {[%clk 0:02:16.8]}
18. g4 {[%clk 0:01:04.6]} 18... O-O-O {[%clk 0:01:55]} 19. gxf5 {[%clk
0:00:41.7]} 19... Rxg1 {[%clk 0:01:53.6]} 20. Qxg1 {[%clk 0:00:42.6]} 20... Qd5
{[%clk 0:01:53.7]} 21. Be2 {[%clk 0:00:37.9]} 21... Qa2 {[%clk 0:01:51.6]} 22.
Rb4 {[%clk 0:00:24.4]} 22... Qxc2 {[%clk 0:01:51.2]} 23. Qe3 {[%clk 0:00:23.3]}
23... Rg8 {[%clk 0:01:42.7]} 24. fxe6 {[%clk 0:00:11.8]} 24... Rg1+ {[%clk
0:01:33.9]} 25. Qxg1 {[%clk 0:00:11.1]} 25... Qxc1+ {[%clk 0:01:33.9]} 26. Kf2
{[%clk 0:00:11.3]} 26... Qd2 {[%clk 0:01:29.1]} 27. Qg8+ {[%clk 0:00:09.2]}
27... Kc7 {[%clk 0:01:29.3]} 28. Qxf7+ {[%clk 0:00:09.5]} 28... Kc8 {[%clk
0:01:27.5]} 29. e7 {[%clk 0:00:09.2]} 29... c2 {[%clk 0:01:18.7]} 30. e8=Q+
{[%clk 0:00:08.9]} 30... Bxe8 {[%clk 0:01:19]} 31. Qxe8+ {[%clk 0:00:09.7]}
31... Kc7 {[%clk 0:01:19.6]} 32. Qe7+ {[%clk 0:00:09.9]} 32... Qd7 {[%clk
0:01:18.5]} 33. Qxd7+ {[%clk 0:00:09.9]} 33... Kxd7 {[%clk 0:01:18.6]} 34. Rc4
{[%clk 0:00:10.8]} 34... b5 {[%clk 0:01:17.9]} 35. Rxc2 {[%clk 0:00:11]} 1-0

[Event "Late-Titled-Tuesday-Blitz-May-28-2024"]
[Site "Chess.com"]
[Date "2024.05.28"]
[Round "7"]
[White "Robert_Oros"]
[Black "Cuchulin"]
[Result "1-0"]
[WhiteElo "2437"]
[BlackElo "2236"]
[TimeControl "180+1"]
[EndTime "15:16:23 PDT"]
[Termination "Robert_Oros won by resignation"]

1. d4 {[%clk 0:03:00.9]} 1... d5 {[%clk 0:02:59.8]} 2. c4 {[%clk 0:03:00.3]}
2... e6 {[%clk 0:03:00.1]} 3. Nc3 {[%clk 0:02:59.7]} 3... Nf6 {[%clk 0:03:00.3]}
4. cxd5 {[%clk 0:03:00.3]} 4... exd5 {[%clk 0:03:00.2]} 5. Bg5 {[%clk
0:03:00.2]} 5... Be7 {[%clk 0:03:00.2]} 6. e3 {[%clk 0:03:00.1]} 6... O-O {[%clk
0:02:59.7]} 7. Bd3 {[%clk 0:02:59.8]} 7... Nbd7 {[%clk 0:02:57.9]} 8. Qc2 {[%clk
0:02:59]} 8... h6 {[%clk 0:02:58.3]} 9. Bh4 {[%clk 0:02:57.9]} 9... c5 {[%clk
0:02:58.1]} 10. Nge2 {[%clk 0:02:52.6]} 10... c4 {[%clk 0:02:56.4]} 11. Bf5
{[%clk 0:02:52.4]} 11... Nb6 {[%clk 0:02:46.1]} 12. O-O {[%clk 0:02:47.1]} 12...
Ne4 {[%clk 0:02:25]} 13. Bxc8 {[%clk 0:02:36.1]} 13... Rxc8 {[%clk 0:01:53.2]}
14. Bg3 {[%clk 0:02:19.8]} 14... Nxg3 {[%clk 0:01:50]} 15. Nxg3 {[%clk
0:02:13.7]} 15... g6 {[%clk 0:01:40.7]} 16. Rad1 {[%clk 0:02:03.1]} 16... Bf6
{[%clk 0:01:40.1]} 17. e4 {[%clk 0:01:55.2]} 17... dxe4 {[%clk 0:01:39.6]} 18.
d5 {[%clk 0:01:49.7]} 18... Bxc3 {[%clk 0:01:17.4]} 19. bxc3 {[%clk 0:01:49.3]}
19... f5 {[%clk 0:01:11.1]} 20. f3 {[%clk 0:01:46.3]} 20... exf3 {[%clk
0:01:04.1]} 21. Rxf3 {[%clk 0:01:43.5]} 21... Nxd5 {[%clk 0:01:01.3]} 22. Kh1
{[%clk 0:01:18.1]} 22... Qa5 {[%clk 0:01:00.1]} 23. Nxf5 {[%clk 0:01:15]} 23...
gxf5 {[%clk 0:00:53.6]} 24. Rxf5 {[%clk 0:01:14.4]} 24... Ne3 {[%clk 0:00:50.9]}
25. Rxf8+ {[%clk 0:01:12]} 25... Kxf8 {[%clk 0:00:29.5]} 26. Qf2+ {[%clk
0:01:06.1]} 26... Nf5 {[%clk 0:00:27.9]} 27. Rf1 {[%clk 0:01:00.8]} 27... Rc5
{[%clk 0:00:25.6]} 28. g4 {[%clk 0:00:56]} 28... Qxc3 {[%clk 0:00:23.1]} 29.
Qxc5+ {[%clk 0:00:55.5]} 29... Kg7 {[%clk 0:00:19.4]} 30. Qxf5 {[%clk
0:00:55.1]} 1-0

[Event "Late-Titled-Tuesday-Blitz-May-28-2024"]
[Site "Chess.com"]
[Date "2024.05.28"]
[Round "7"]
[White "KejJaj"]
[Black "howitzer14"]
[Result "0-1"]
[WhiteElo "2159"]
[BlackElo "3018"]
[TimeControl "180+1"]
[EndTime "15:16:23 PDT"]
[Termination "howitzer14 won by resignation"]

1. d4 {[%clk 0:03:00.9]} 1... Nf6 {[%clk 0:02:57.1]} 2. Bf4 {[%clk 0:03:01.3]}
2... Nd5 {[%clk 0:02:48.8]} 3. Bg3 {[%clk 0:02:56.4]} 3... f5 {[%clk 0:02:23.9]}
4. c4 {[%clk 0:02:50.3]} 4... Nf6 {[%clk 0:02:24]} 5. e3 {[%clk 0:02:47.4]} 5...
e6 {[%clk 0:02:23.5]} 6. Bd3 {[%clk 0:02:42]} 6... b6 {[%clk 0:02:18.4]} 7. Nf3
{[%clk 0:02:39.5]} 7... Bb4+ {[%clk 0:02:17.8]} 8. Nbd2 {[%clk 0:02:35.6]} 8...
Bb7 {[%clk 0:02:15.3]} 9. a3 {[%clk 0:02:24.8]} 9... Bxd2+ {[%clk 0:02:13.9]}
10. Qxd2 {[%clk 0:02:24.7]} 10... O-O {[%clk 0:02:12]} 11. h3 {[%clk 0:02:02.6]}
11... Ne4 {[%clk 0:02:02.3]} 12. Qc2 {[%clk 0:01:58]} 12... d6 {[%clk
0:02:01.9]} 13. Bh4 {[%clk 0:01:45.7]} 13... Qe8 {[%clk 0:01:58.7]} 14. g4
{[%clk 0:01:45.2]} 14... Nd7 {[%clk 0:01:45.6]} 15. O-O-O {[%clk 0:01:37.8]}
15... Kh8 {[%clk 0:01:45.4]} 16. gxf5 {[%clk 0:01:34]} 16... exf5 {[%clk
0:01:46.3]} 17. Rhg1 {[%clk 0:01:22.5]} 17... Qh5 {[%clk 0:01:26.6]} 18. Be2
{[%clk 0:00:57.9]} 18... Nxf2 {[%clk 0:01:25.7]} 19. Bxf2 {[%clk 0:00:45.9]}
19... Bxf3 {[%clk 0:01:24.8]} 20. Bxf3 {[%clk 0:00:45.8]} 20... Qxf3 {[%clk
0:01:25.7]} 21. Rg3 {[%clk 0:00:45.4]} 21... Qe4 {[%clk 0:01:18.8]} 22. Qe2
{[%clk 0:00:42]} 22... Nf6 {[%clk 0:01:17.8]} 23. Rdg1 {[%clk 0:00:40.5]} 23...
Rf7 {[%clk 0:01:18.3]} 24. Qd1 {[%clk 0:00:31.4]} 24... Re8 {[%clk 0:01:17.7]}
25. Qa4 {[%clk 0:00:28.3]} 25... a5 {[%clk 0:01:17.6]} 26. Rg5 {[%clk
0:00:19.9]} 26... Qe6 {[%clk 0:01:12.9]} 27. h4 {[%clk 0:00:16.5]} 27... Ne4
{[%clk 0:01:10.4]} 28. R5g2 {[%clk 0:00:14]} 28... Nxf2 {[%clk 0:01:10.4]} 29.
Kb1 {[%clk 0:00:10.4]} 29... Ng4 {[%clk 0:01:09.6]} 30. h5 {[%clk 0:00:06.6]}
30... h6 {[%clk 0:01:09.4]} 31. Re1 {[%clk 0:00:05.5]} 31... Qe4+ {[%clk
0:01:09.2]} 0-1

[Event "Late-Titled-Tuesday-Blitz-May-28-2024"]
[Site "Chess.com"]
[Date "2024.05.28"]
[Round "7"]
[White "CarlosjPineror"]
[Black "jlf287"]
[Result "1-0"]
[WhiteElo "2754"]
[BlackElo "2516"]
[TimeControl "180+1"]
[EndTime "15:16:25 PDT"]
[Termination "CarlosjPineror won by resignation"]

1. e4 {[%clk 0:02:58.2]} 1... e5 {[%clk 0:02:59.3]} 2. Nf3 {[%clk 0:02:57.8]}
2... Nc6 {[%clk 0:03:00]} 3. Bb5 {[%clk 0:02:58.2]} 3... a6 {[%clk 0:02:59.8]}
4. Ba4 {[%clk 0:02:58.7]} 4... Nf6 {[%clk 0:02:59.7]} 5. d4 {[%clk 0:02:58.9]}
5... exd4 {[%clk 0:02:57.1]} 6. e5 {[%clk 0:02:59.3]} 6... Ne4 {[%clk
0:02:54.6]} 7. O-O {[%clk 0:02:59.7]} 7... Be7 {[%clk 0:02:48.5]} 8. Nxd4 {[%clk
0:02:59.5]} 8... Nc5 {[%clk 0:02:47.5]} 9. Nf5 {[%clk 0:02:58.8]} 9... O-O
{[%clk 0:02:18.5]} 10. Qg4 {[%clk 0:02:55]} 10... g6 {[%clk 0:02:18]} 11. Bxc6
{[%clk 0:02:55.4]} 11... dxc6 {[%clk 0:02:17.5]} 12. Nxe7+ {[%clk 0:02:56]}
12... Qxe7 {[%clk 0:02:17]} 13. Qg3 {[%clk 0:02:56.8]} 13... Be6 {[%clk
0:02:08.9]} 14. Bg5 {[%clk 0:02:48]} 14... Qd7 {[%clk 0:02:05.8]} 15. Nc3 {[%clk
0:02:46.2]} 15... Bf5 {[%clk 0:01:59.4]} 16. Bf6 {[%clk 0:02:38]} 16... h6
{[%clk 0:01:53.9]} 17. Rad1 {[%clk 0:02:32.3]} 17... Qe6 {[%clk 0:01:53.6]} 18.
Rd4 {[%clk 0:02:33]} 18... Nd7 {[%clk 0:01:44.9]} 19. Rxd7 {[%clk 0:02:24.8]}
19... Qxd7 {[%clk 0:01:44]} 20. Rd1 {[%clk 0:02:25.5]} 20... Qe6 {[%clk
0:01:42.5]} 21. Rd4 {[%clk 0:02:26.1]} 21... Rfe8 {[%clk 0:01:38.4]} 22. Qh4
{[%clk 0:02:24.5]} 22... c5 {[%clk 0:01:18.6]} 23. Ne4 {[%clk 0:02:07.8]} 23...
Qxa2 {[%clk 0:01:00.8]} 24. Nc3 {[%clk 0:02:02.6]} 24... Qa1+ {[%clk 0:00:29.3]}
25. Rd1 {[%clk 0:01:58.5]} 25... Qxd1+ {[%clk 0:00:28.5]} 26. Nxd1 {[%clk
0:01:59.4]} 26... Kh7 {[%clk 0:00:29]} 27. Ne3 {[%clk 0:01:50]} 27... Be6 {[%clk
0:00:28.6]} 28. Ng4 {[%clk 0:01:40.8]} 28... Bxg4 {[%clk 0:00:27.9]} 29. Qxg4
{[%clk 0:01:41.7]} 29... Re6 {[%clk 0:00:24.8]} 30. h4 {[%clk 0:01:41.1]} 30...
a5 {[%clk 0:00:18.3]} 31. h5 {[%clk 0:01:40.1]} 31... g5 {[%clk 0:00:17.8]} 32.
Qe4+ {[%clk 0:01:38.4]} 32... Kg8 {[%clk 0:00:17.7]} 33. Qxb7 {[%clk 0:01:39.3]}
33... Rae8 {[%clk 0:00:15.3]} 34. Qxc7 {[%clk 0:01:38.1]} 34... a4 {[%clk
0:00:10.7]} 35. Qxc5 {[%clk 0:01:37.6]} 35... Ra6 {[%clk 0:00:09.7]} 36. Qb5
{[%clk 0:01:36.6]} 36... Rea8 {[%clk 0:00:08]} 37. c4 {[%clk 0:01:37.2]} 37...
a3 {[%clk 0:00:07.8]} 38. bxa3 {[%clk 0:01:36.8]} 38... Rxa3 {[%clk 0:00:08.2]}
39. c5 {[%clk 0:01:37]} 39... R3a5 {[%clk 0:00:07.9]} 40. Qb3 {[%clk 0:01:35.1]}
40... Ra3 {[%clk 0:00:06.7]} 41. Qd5 {[%clk 0:01:35.2]} 41... Rc8 {[%clk
0:00:02.8]} 42. e6 {[%clk 0:01:35.2]} 1-0

[Event "Late-Titled-Tuesday-Blitz-May-28-2024"]
[Site "Chess.com"]
[Date "2024.05.28"]
[Round "7"]
[White "Slovineanu"]
[Black "Lennis93"]
[Result "0-1"]
[WhiteElo "2551"]
[BlackElo "2771"]
[TimeControl "180+1"]
[EndTime "15:16:26 PDT"]
[Termination "Lennis93 won by resignation"]

1. d4 {[%clk 0:03:00.9]} 1... Nf6 {[%clk 0:02:59.3]} 2. Nf3 {[%clk 0:03:01.2]}
2... d5 {[%clk 0:02:59.2]} 3. c4 {[%clk 0:03:01.2]} 3... dxc4 {[%clk 0:02:59.2]}
4. e3 {[%clk 0:03:01.3]} 4... a6 {[%clk 0:03:00.1]} 5. Bxc4 {[%clk 0:03:01.3]}
5... e6 {[%clk 0:03:01]} 6. O-O {[%clk 0:03:00.6]} 6... Be7 {[%clk 0:03:01.9]}
7. Nbd2 {[%clk 0:02:51.9]} 7... b5 {[%clk 0:03:01.4]} 8. Bd3 {[%clk 0:02:48.2]}
8... c5 {[%clk 0:03:01.1]} 9. a4 {[%clk 0:02:46.1]} 9... c4 {[%clk 0:03:00]} 10.
Bc2 {[%clk 0:02:45.1]} 10... Bb7 {[%clk 0:03:00.2]} 11. e4 {[%clk 0:02:39.7]}
11... Nbd7 {[%clk 0:02:59.1]} 12. e5 {[%clk 0:02:38.4]} 12... Nd5 {[%clk
0:02:58.4]} 13. Ne4 {[%clk 0:02:38.5]} 13... b4 {[%clk 0:02:56.8]} 14. Bg5
{[%clk 0:02:37.1]} 14... O-O {[%clk 0:02:55.5]} 15. Bxe7 {[%clk 0:02:34.6]}
15... Nxe7 {[%clk 0:02:55]} 16. Nd6 {[%clk 0:02:29.5]} 16... Bd5 {[%clk
0:02:51.1]} 17. Qe2 {[%clk 0:02:23.5]} 17... Ng6 {[%clk 0:02:36.4]} 18. Bxg6
{[%clk 0:02:19.3]} 18... fxg6 {[%clk 0:02:31.8]} 19. Nxc4 {[%clk 0:02:06.4]}
19... Rxf3 {[%clk 0:02:31.1]} 20. gxf3 {[%clk 0:01:58.9]} 20... Qg5+ {[%clk
0:02:31.4]} 21. Kh1 {[%clk 0:01:57.7]} 21... Qh5 {[%clk 0:02:32.3]} 22. Nd2
{[%clk 0:01:49.9]} 22... Rf8 {[%clk 0:02:32.2]} 23. Ne4 {[%clk 0:01:22.1]} 23...
Rxf3 {[%clk 0:02:29.3]} 24. Rac1 {[%clk 0:01:07.7]} 24... Nb6 {[%clk 0:02:01.5]}
25. Rc5 {[%clk 0:01:03.5]} 25... Rf4 {[%clk 0:01:31.5]} 26. Qxh5 {[%clk
0:00:50.5]} 26... Bxe4+ {[%clk 0:01:30.8]} 27. f3 {[%clk 0:00:50.8]} 27... gxh5
{[%clk 0:01:30.4]} 28. fxe4 {[%clk 0:00:50.1]} 28... Rxf1+ {[%clk 0:01:29.8]}
29. Kg2 {[%clk 0:00:50.6]} 29... Rb1 {[%clk 0:01:29.5]} 30. d5 {[%clk
0:00:44.1]} 30... exd5 {[%clk 0:01:28.9]} 31. exd5 {[%clk 0:00:44.5]} 31...
Rxb2+ {[%clk 0:01:29.2]} 32. Kf3 {[%clk 0:00:44.3]} 32... Rd2 {[%clk 0:01:18.4]}
33. Ke4 {[%clk 0:00:40.6]} 33... Nxd5 {[%clk 0:00:56.2]} 34. Rxd5 {[%clk
0:00:32.5]} 34... Rxd5 {[%clk 0:00:55.8]} 35. Kxd5 {[%clk 0:00:33.1]} 35... b3
{[%clk 0:00:56.4]} 36. e6 {[%clk 0:00:30]} 36... b2 {[%clk 0:00:56]} 0-1

[Event "Late-Titled-Tuesday-Blitz-May-28-2024"]
[Site "Chess.com"]
[Date "2024.05.28"]
[Round "7"]
[White "Smoking_Crow"]
[Black "Veleamater"]
[Result "1-0"]
[WhiteElo "2581"]
[BlackElo "2456"]
[TimeControl "180+1"]
[EndTime "15:16:34 PDT"]
[Termination "Smoking_Crow won by resignation"]

1. e4 {[%clk 0:02:57]} 1... d6 {[%clk 0:03:00]} 2. d4 {[%clk 0:02:55.5]} 2... g6
{[%clk 0:03:00.6]} 3. Nc3 {[%clk 0:02:55]} 3... Bg7 {[%clk 0:03:01.2]} 4. Be3
{[%clk 0:02:55.2]} 4... Nf6 {[%clk 0:03:01.7]} 5. f3 {[%clk 0:02:55.5]} 5... O-O
{[%clk 0:03:00.5]} 6. Qd2 {[%clk 0:02:55.6]} 6... a6 {[%clk 0:03:01.1]} 7. O-O-O
{[%clk 0:02:53.3]} 7... Nc6 {[%clk 0:03:00.5]} 8. h4 {[%clk 0:02:53.4]} 8... h5
{[%clk 0:02:58.7]} 9. Nh3 {[%clk 0:02:52.7]} 9... e5 {[%clk 0:02:58.4]} 10. d5
{[%clk 0:02:52.6]} 10... Ne7 {[%clk 0:02:58.2]} 11. Bh6 {[%clk 0:02:52.2]} 11...
Kh7 {[%clk 0:02:58]} 12. Ng5+ {[%clk 0:02:41.8]} 12... Kg8 {[%clk 0:02:57.8]}
13. Bxg7 {[%clk 0:02:42.1]} 13... Kxg7 {[%clk 0:02:58.1]} 14. Kb1 {[%clk
0:02:39.7]} 14... Rh8 {[%clk 0:02:58]} 15. Be2 {[%clk 0:02:39.4]} 15... b5
{[%clk 0:02:58]} 16. Rhg1 {[%clk 0:02:37]} 16... Bd7 {[%clk 0:02:57.8]} 17. Qe3
{[%clk 0:02:34.1]} 17... b4 {[%clk 0:02:55.4]} 18. f4 {[%clk 0:02:32.5]} 18...
bxc3 {[%clk 0:02:51.2]} 19. Qxc3 {[%clk 0:02:33.4]} 19... exf4 {[%clk
0:02:44.1]} 20. e5 {[%clk 0:02:33.7]} 20... dxe5 {[%clk 0:02:42.2]} 21. Qxe5
{[%clk 0:02:30.8]} 21... Nf5 {[%clk 0:02:42.2]} 22. Bd3 {[%clk 0:02:25.7]} 22...
Ne3 {[%clk 0:02:24.6]} 23. Rd2 {[%clk 0:02:17.4]} 23... Re8 {[%clk 0:02:12.3]}
24. Qd4 {[%clk 0:02:17]} 24... Nxd5 {[%clk 0:02:06.4]} 25. c4 {[%clk 0:02:14]}
25... Ne3 {[%clk 0:01:43.4]} 26. Qxf4 {[%clk 0:02:04.6]} 26... Neg4 {[%clk
0:01:43.2]} 27. Ka1 {[%clk 0:02:01.4]} 27... Qe7 {[%clk 0:01:41.5]} 28. Qxc7
{[%clk 0:01:55.7]} 28... Qb4 {[%clk 0:01:23.2]} 29. Rc2 {[%clk 0:01:44.8]} 29...
Re1+ {[%clk 0:01:20.7]} 30. Rc1 {[%clk 0:01:45]} 30... Rxg1 {[%clk 0:01:19.2]}
31. Rxg1 {[%clk 0:01:44.7]} 31... Rb8 {[%clk 0:01:19.1]} 32. Rb1 {[%clk
0:01:44.2]} 32... Ne3 {[%clk 0:00:56.6]} 33. Qf4 {[%clk 0:01:36.2]} 33... Nd1
{[%clk 0:00:42]} 34. Qd4 {[%clk 0:01:27.6]} 34... Qd2 {[%clk 0:00:36.8]} 35. Ne4
{[%clk 0:01:11]} 35... Rb6 {[%clk 0:00:18.3]} 36. Nxd2 {[%clk 0:01:09.6]} 36...
Bg4 {[%clk 0:00:14.7]} 37. Qxb6 {[%clk 0:01:08]} 1-0